[Event "Late-Titled-Tuesday-Blitz-March-19-2024"]
[Site "Chess.com"]
[Date "2024.03.19"]
[Round "4"]
[White "valeriocarnicelli"]
[Black "AndresDelgado77"]
[Result "1-0"]
[WhiteElo "2553"]
[BlackElo "2346"]
[TimeControl "180+1"]
[EndTime "14:38:39 PDT"]
[Termination "valeriocarnicelli won on time"]

1. b3 {[%clk 0:03:00.9]} 1... d5 {[%clk 0:02:59.1]} 2. Bb2 {[%clk 0:03:01.3]}
2... Bf5 {[%clk 0:02:59.7]} 3. d3 {[%clk 0:03:00.9]} 3... e6 {[%clk 0:02:59.8]}
4. Nf3 {[%clk 0:03:01.3]} 4... h6 {[%clk 0:02:57.8]} 5. Nbd2 {[%clk 0:03:01.5]}
5... Nf6 {[%clk 0:02:57.9]} 6. g3 {[%clk 0:03:01.9]} 6... Be7 {[%clk 0:02:57.1]}
7. Bg2 {[%clk 0:03:02.6]} 7... O-O {[%clk 0:02:57.1]} 8. O-O {[%clk 0:03:03.3]}
8... Nbd7 {[%clk 0:02:57.2]} 9. Re1 {[%clk 0:03:03.1]} 9... Bh7 {[%clk
0:02:55.4]} 10. c4 {[%clk 0:03:03]} 10... c6 {[%clk 0:02:54.3]} 11. Rc1 {[%clk
0:03:02.8]} 11... a5 {[%clk 0:02:53.5]} 12. a3 {[%clk 0:03:01.4]} 12... Rc8
{[%clk 0:02:43.8]} 13. Rc2 {[%clk 0:03:00.3]} 13... b5 {[%clk 0:02:34.4]} 14.
Qa1 {[%clk 0:02:57]} 14... a4 {[%clk 0:02:29.9]} 15. cxb5 {[%clk 0:02:49.5]}
15... axb3 {[%clk 0:02:15.3]} 16. Rxc6 {[%clk 0:02:48.3]} 16... Rxc6 {[%clk
0:02:01.5]} 17. bxc6 {[%clk 0:02:49.2]} 17... Nb8 {[%clk 0:01:59.3]} 18. Rc1
{[%clk 0:02:48.9]} 18... Bd6 {[%clk 0:01:23.8]} 19. Nxb3 {[%clk 0:02:47.3]}
19... Ng4 {[%clk 0:01:04.4]} 20. Bxg7 {[%clk 0:02:42.5]} 20... Qb6 {[%clk
0:01:02.1]} 21. Bd4 {[%clk 0:02:29.1]} 21... Qxb3 {[%clk 0:00:59.8]} 22. c7
{[%clk 0:02:26.6]} 22... Bxc7 {[%clk 0:00:45.9]} 23. Rxc7 {[%clk 0:02:27.5]}
23... f6 {[%clk 0:00:23.9]} 24. h3 {[%clk 0:02:25.1]} 24... e5 {[%clk
0:00:22.4]} 25. Bb2 {[%clk 0:02:19.6]} 25... Qb6 {[%clk 0:00:16.8]} 26. Rxh7
{[%clk 0:01:55.9]} 26... Qxf2+ {[%clk 0:00:14.5]} 27. Kh1 {[%clk 0:01:56.4]}
27... Ne3 {[%clk 0:00:13.7]} 28. Qg1 {[%clk 0:01:20.1]} 28... Qxg1+ {[%clk
0:00:13.1]} 29. Kxg1 {[%clk 0:01:21]} 29... Kxh7 {[%clk 0:00:13.6]} 30. Bh1
{[%clk 0:01:20.1]} 30... Nc6 {[%clk 0:00:12.4]} 31. Bc1 {[%clk 0:01:13.3]} 31...
Nc2 {[%clk 0:00:11.8]} 32. Nh4 {[%clk 0:01:07.7]} 32... N6d4 {[%clk 0:00:07]}
33. Kf2 {[%clk 0:01:05.9]} 33... Rd8 {[%clk 0:00:05]} 34. g4 {[%clk 0:00:49.1]}
34... Nb3 {[%clk 0:00:04.3]} 35. Bb2 {[%clk 0:00:49]} 35... d4 {[%clk
0:00:04.7]} 36. a4 {[%clk 0:00:43.3]} 36... Rd7 {[%clk 0:00:04.8]} 37. Be4+
{[%clk 0:00:40.3]} 37... Kg8 {[%clk 0:00:03.5]} 38. Nf5 {[%clk 0:00:40.4]} 38...
Rc7 {[%clk 0:00:02.4]} 39. Bd5+ {[%clk 0:00:40]} 39... Kh8 {[%clk 0:00:01.1]}
40. Bxb3 {[%clk 0:00:39.9]} 40... Nb4 {[%clk 0:00:01.5]} 41. Ba3 {[%clk
0:00:37.6]} 1-0

[Event "Late-Titled-Tuesday-Blitz-March-19-2024"]
[Site "Chess.com"]
[Date "2024.03.19"]
[Round "4"]
[White "MaiqMaster"]
[Black "Eltaj_Safarli"]
[Result "1/2-1/2"]
[WhiteElo "2370"]
[BlackElo "2606"]
[TimeControl "180+1"]
[EndTime "14:38:40 PDT"]
[Termination "Game drawn by repetition"]

1. d4 {[%clk 0:03:00.9]} 1... Nf6 {[%clk 0:02:59.9]} 2. c4 {[%clk 0:02:59]} 2...
g6 {[%clk 0:03:00.2]} 3. g3 {[%clk 0:02:59]} 3... c6 {[%clk 0:02:59.8]} 4. Bg2
{[%clk 0:02:58.1]} 4... d5 {[%clk 0:03:00.7]} 5. Nf3 {[%clk 0:02:58.5]} 5... Bg7
{[%clk 0:03:00.7]} 6. O-O {[%clk 0:02:56.9]} 6... O-O {[%clk 0:03:01]} 7. cxd5
{[%clk 0:02:56.7]} 7... cxd5 {[%clk 0:03:01.9]} 8. Nc3 {[%clk 0:02:56.7]} 8...
Nc6 {[%clk 0:03:02.1]} 9. Ne5 {[%clk 0:02:54.7]} 9... Bf5 {[%clk 0:03:02.5]} 10.
Bf4 {[%clk 0:02:49.2]} 10... Rc8 {[%clk 0:03:01.2]} 11. Nxc6 {[%clk 0:02:44.2]}
11... Rxc6 {[%clk 0:03:02.1]} 12. Qb3 {[%clk 0:02:43.1]} 12... Rb6 {[%clk
0:03:00.1]} 13. Qa3 {[%clk 0:02:37.3]} 13... Ne4 {[%clk 0:02:59.2]} 14. Rac1
{[%clk 0:02:20.6]} 14... Bxd4 {[%clk 0:02:54.2]} 15. Nxe4 {[%clk 0:02:20.3]}
15... Bxb2 {[%clk 0:02:50.8]} 16. Qe3 {[%clk 0:01:59]} 16... Bxc1 {[%clk
0:02:50]} 17. Rxc1 {[%clk 0:01:59.9]} 17... Bxe4 {[%clk 0:02:42.7]} 18. Bxe4
{[%clk 0:01:59.4]} 18... Re6 {[%clk 0:02:39.4]} 19. Bc7 {[%clk 0:01:53.1]} 19...
Qd7 {[%clk 0:02:33.5]} 20. Bf5 {[%clk 0:01:40.6]} 20... gxf5 {[%clk 0:02:21.1]}
21. Qxa7 {[%clk 0:01:38.7]} 21... Rxe2 {[%clk 0:02:18.8]} 22. a4 {[%clk
0:01:35.6]} 22... d4 {[%clk 0:02:14.4]} 23. Qxb7 {[%clk 0:01:32.5]} 23... d3
{[%clk 0:02:10.2]} 24. Bf4 {[%clk 0:00:58.4]} 24... d2 {[%clk 0:02:07.2]} 25.
Qxd7 {[%clk 0:00:58]} 25... dxc1=Q+ {[%clk 0:01:59.7]} 26. Bxc1 {[%clk
0:00:58.9]} 26... Re1+ {[%clk 0:01:59.9]} 27. Kg2 {[%clk 0:00:49.2]} 27... Rxc1
{[%clk 0:02:00.8]} 28. Qxf5 {[%clk 0:00:48.7]} 28... Rc6 {[%clk 0:01:57.6]} 29.
Qg5+ {[%clk 0:00:45.1]} 29... Rg6 {[%clk 0:01:57.4]} 30. Qxe7 {[%clk 0:00:45.7]}
30... Ra8 {[%clk 0:01:57.6]} 31. Qe4 {[%clk 0:00:39.6]} 31... Ra5 {[%clk
0:01:51.5]} 32. h4 {[%clk 0:00:36.9]} 32... h6 {[%clk 0:01:48.9]} 33. Qe8+
{[%clk 0:00:33]} 33... Kg7 {[%clk 0:01:48.8]} 34. Qd7 {[%clk 0:00:33]} 34...
Raa6 {[%clk 0:01:39.4]} 35. Qd4+ {[%clk 0:00:32.7]} 35... Kh7 {[%clk 0:01:39]}
36. Qc4 {[%clk 0:00:29.7]} 36... Rgf6 {[%clk 0:01:38.7]} 37. g4 {[%clk
0:00:28.5]} 37... Rac6 {[%clk 0:01:37.8]} 38. Qd5 {[%clk 0:00:27.5]} 38... Kg8
{[%clk 0:01:34.4]} 39. g5 {[%clk 0:00:25.7]} 39... hxg5 {[%clk 0:01:35.3]} 40.
hxg5 {[%clk 0:00:26.4]} 40... Rfd6 {[%clk 0:01:34.5]} 41. Qb3 {[%clk 0:00:21.9]}
41... Kg7 {[%clk 0:01:33.6]} 42. f4 {[%clk 0:00:21.7]} 42... Rd4 {[%clk
0:01:29.8]} 43. Kg3 {[%clk 0:00:19.2]} 43... Rcc4 {[%clk 0:01:29.5]} 44. a5
{[%clk 0:00:19.4]} 44... Rxf4 {[%clk 0:01:27.7]} 45. Qb2+ {[%clk 0:00:20]} 45...
Kg6 {[%clk 0:01:26.2]} 46. Qb6+ {[%clk 0:00:16.8]} 46... Kxg5 {[%clk 0:01:23.7]}
47. Qd8+ {[%clk 0:00:17.5]} 47... Kg6 {[%clk 0:01:20.9]} 48. Qg8+ {[%clk
0:00:17.2]} 48... Kf6 {[%clk 0:01:21.4]} 49. Qh8+ {[%clk 0:00:14.6]} 49... Ke6
{[%clk 0:01:18.5]} 50. Qe8+ {[%clk 0:00:14]} 50... Kf6 {[%clk 0:01:16.5]} 51.
Qd8+ {[%clk 0:00:11.3]} 51... Kf5 {[%clk 0:01:12.7]} 52. Qd7+ {[%clk 0:00:10.4]}
52... Kg6 {[%clk 0:01:12.2]} 53. Qd6+ {[%clk 0:00:09.1]} 53... Kg5 {[%clk
0:01:11.8]} 54. Qe5+ {[%clk 0:00:08.6]} 54... f5 {[%clk 0:01:01]} 55. Qg7+
{[%clk 0:00:04.3]} 55... Kh5 {[%clk 0:01:01.4]} 56. Qh7+ {[%clk 0:00:04.6]}
56... Kg5 {[%clk 0:01:02]} 57. Qg7+ {[%clk 0:00:04.8]} 57... Kh5 {[%clk
0:01:02.5]} 58. Qh7+ {[%clk 0:00:05.4]} 58... Kg5 {[%clk 0:01:02.4]} 59. Qg7+
{[%clk 0:00:06]} 1/2-1/2

[Event "Late-Titled-Tuesday-Blitz-March-19-2024"]
[Site "Chess.com"]
[Date "2024.03.19"]
[Round "4"]
[White "Englishman_18"]
[Black "betta2004"]
[Result "1-0"]
[WhiteElo "2275"]
[BlackElo "2519"]
[TimeControl "180+1"]
[EndTime "14:38:41 PDT"]
[Termination "Englishman_18 won by checkmate"]

1. Nf3 {[%clk 0:02:52.6]} 1... e5 {[%clk 0:02:57]} 2. Nxe5 {[%clk 0:02:52]} 2...
Nc6 {[%clk 0:02:57]} 3. Nf3 {[%clk 0:02:50]} 3... d5 {[%clk 0:02:56.5]} 4. d4
{[%clk 0:02:48]} 4... Bf5 {[%clk 0:02:56.4]} 5. g3 {[%clk 0:02:44.5]} 5... Nf6
{[%clk 0:02:53.9]} 6. Bg2 {[%clk 0:02:44.6]} 6... Ne4 {[%clk 0:02:53.9]} 7. c3
{[%clk 0:02:37.9]} 7... h5 {[%clk 0:02:53.8]} 8. h4 {[%clk 0:02:35]} 8... Be7
{[%clk 0:02:53.5]} 9. Nfd2 {[%clk 0:02:32.7]} 9... Qd6 {[%clk 0:02:49.4]} 10.
Nxe4 {[%clk 0:02:30.6]} 10... dxe4 {[%clk 0:02:50.3]} 11. Bf4 {[%clk 0:02:29.5]}
11... Qd5 {[%clk 0:02:49.6]} 12. Nd2 {[%clk 0:02:28.5]} 12... O-O-O {[%clk
0:02:49.5]} 13. b4 {[%clk 0:02:17.7]} 13... f6 {[%clk 0:02:27]} 14. Qb3 {[%clk
0:02:15.8]} 14... g5 {[%clk 0:02:21.8]} 15. Qxd5 {[%clk 0:02:07.6]} 15... Rxd5
{[%clk 0:02:20.9]} 16. Be3 {[%clk 0:02:05.6]} 16... Re8 {[%clk 0:02:10.5]} 17.
hxg5 {[%clk 0:01:47.3]} 17... fxg5 {[%clk 0:02:03.3]} 18. Rxh5 {[%clk 0:01:45]}
18... Bg6 {[%clk 0:02:00.8]} 19. Rh1 {[%clk 0:01:38.8]} 19... Bf8 {[%clk
0:01:55.9]} 20. Rh8 {[%clk 0:01:33]} 20... Rdd8 {[%clk 0:01:47.7]} 21. Nb3
{[%clk 0:01:26.6]} 21... Ne7 {[%clk 0:01:42.6]} 22. Bxg5 {[%clk 0:01:17.3]}
22... e3 {[%clk 0:01:39.6]} 23. fxe3 {[%clk 0:01:12.6]} 23... Bg7 {[%clk
0:01:33.2]} 24. Rxe8 {[%clk 0:01:11.6]} 24... Rxe8 {[%clk 0:01:33.8]} 25. Nc5
{[%clk 0:01:07.9]} 25... c6 {[%clk 0:01:22.6]} 26. Kd2 {[%clk 0:01:05.1]} 26...
Nf5 {[%clk 0:01:22.2]} 27. g4 {[%clk 0:01:01.9]} 27... Nd6 {[%clk 0:01:19.9]}
28. Rf1 {[%clk 0:00:28]} 28... Nc4+ {[%clk 0:01:17.5]} 29. Kc1 {[%clk
0:00:17.6]} 29... Nxe3 {[%clk 0:01:11.6]} 30. Bxe3 {[%clk 0:00:17.3]} 30... Rxe3
{[%clk 0:01:12.5]} 31. g5 {[%clk 0:00:15.3]} 31... Rxe2 {[%clk 0:01:10.5]} 32.
Bh3+ {[%clk 0:00:13]} 32... Kb8 {[%clk 0:01:08]} 33. a3 {[%clk 0:00:12.9]} 33...
Re3 {[%clk 0:01:07]} 34. Bf5 {[%clk 0:00:11.6]} 34... Bxf5 {[%clk 0:00:54.6]}
35. Rxf5 {[%clk 0:00:11.5]} 35... Rxc3+ {[%clk 0:00:55.5]} 36. Kb2 {[%clk
0:00:10.5]} 36... Bxd4 {[%clk 0:00:54.1]} 37. Rf8+ {[%clk 0:00:10.3]} 37... Kc7
{[%clk 0:00:52.5]} 38. Ne6+ {[%clk 0:00:10.7]} 38... Kb6 {[%clk 0:00:49.1]} 39.
Nxd4 {[%clk 0:00:10.9]} 39... Rg3 {[%clk 0:00:50]} 40. Rg8 {[%clk 0:00:10.8]}
40... a5 {[%clk 0:00:50.1]} 41. bxa5+ {[%clk 0:00:10.3]} 41... Kxa5 {[%clk
0:00:50.6]} 42. Nc2 {[%clk 0:00:10.7]} 42... b5 {[%clk 0:00:49.2]} 43. g6 {[%clk
0:00:10.8]} 43... c5 {[%clk 0:00:47.7]} 44. g7 {[%clk 0:00:10.9]} 44... b4
{[%clk 0:00:43.6]} 45. Ra8+ {[%clk 0:00:10.7]} 45... Kb6 {[%clk 0:00:43.8]} 46.
g8=Q {[%clk 0:00:10.3]} 46... Rxg8 {[%clk 0:00:44.6]} 47. Rxg8 {[%clk
0:00:09.6]} 47... b3 {[%clk 0:00:45.5]} 48. Kxb3 {[%clk 0:00:09.8]} 48... c4+
{[%clk 0:00:46.4]} 49. Kxc4 {[%clk 0:00:10.2]} 49... Ka6 {[%clk 0:00:47.3]} 50.
Kb4 {[%clk 0:00:10.6]} 50... Ka7 {[%clk 0:00:48.2]} 51. Rg6 {[%clk 0:00:10.9]}
51... Kb7 {[%clk 0:00:49.1]} 52. Kc5 {[%clk 0:00:11.4]} 52... Ka7 {[%clk
0:00:50]} 53. Rc6 {[%clk 0:00:11.8]} 53... Kb7 {[%clk 0:00:50.9]} 54. Kb5 {[%clk
0:00:12.2]} 54... Ka7 {[%clk 0:00:51.8]} 55. Rb6 {[%clk 0:00:12.2]} 55... Ka8
{[%clk 0:00:52.2]} 56. Kc6 {[%clk 0:00:12.8]} 56... Ka7 {[%clk 0:00:53.1]} 57.
Kc7 {[%clk 0:00:13.4]} 57... Ka8 {[%clk 0:00:54]} 58. Ra6# {[%clk 0:00:14]} 1-0

[Event "Late-Titled-Tuesday-Blitz-March-19-2024"]
[Site "Chess.com"]
[Date "2024.03.19"]
[Round "4"]
[White "Piriflillo"]
[Black "colegiodemadrid"]
[Result "0-1"]
[WhiteElo "2361"]
[BlackElo "2555"]
[TimeControl "180+1"]
[EndTime "14:38:43 PDT"]
[Termination "colegiodemadrid won by resignation"]

1. Nf3 {[%clk 0:03:00.9]} 1... Nf6 {[%clk 0:02:58.1]} 2. b3 {[%clk 0:03:00.4]}
2... c5 {[%clk 0:02:56.8]} 3. Bb2 {[%clk 0:02:59.3]} 3... d6 {[%clk 0:02:57.4]}
4. e3 {[%clk 0:02:54.6]} 4... e5 {[%clk 0:02:56.6]} 5. d4 {[%clk 0:02:55.2]}
5... cxd4 {[%clk 0:02:55.8]} 6. exd4 {[%clk 0:02:55.5]} 6... e4 {[%clk
0:02:56.4]} 7. Nfd2 {[%clk 0:02:54.6]} 7... d5 {[%clk 0:02:54.8]} 8. c4 {[%clk
0:02:54.3]} 8... Bb4 {[%clk 0:02:49.3]} 9. a3 {[%clk 0:02:51.4]} 9... Bxd2+
{[%clk 0:02:48.8]} 10. Nxd2 {[%clk 0:02:50.8]} 10... O-O {[%clk 0:02:49.1]} 11.
Be2 {[%clk 0:02:46.3]} 11... Nc6 {[%clk 0:02:49]} 12. O-O {[%clk 0:02:46.1]}
12... Re8 {[%clk 0:02:45.2]} 13. cxd5 {[%clk 0:02:34.7]} 13... Qxd5 {[%clk
0:02:43.8]} 14. Bc4 {[%clk 0:02:31.8]} 14... Qg5 {[%clk 0:02:40.2]} 15. Re1
{[%clk 0:01:55.9]} 15... Bg4 {[%clk 0:02:23.3]} 16. Be2 {[%clk 0:01:49.4]} 16...
Bf5 {[%clk 0:02:21.3]} 17. Nf1 {[%clk 0:01:45.9]} 17... Nd5 {[%clk 0:02:16.5]}
18. Bc1 {[%clk 0:01:24.2]} 18... Qf6 {[%clk 0:02:16.2]} 19. Bb2 {[%clk
0:01:16.9]} 19... Rad8 {[%clk 0:02:06]} 20. Ng3 {[%clk 0:01:16.5]} 20... Bg6
{[%clk 0:02:04.6]} 21. Bc4 {[%clk 0:01:16]} 21... Nf4 {[%clk 0:01:58]} 22. Bb5
{[%clk 0:01:00.2]} 22... h5 {[%clk 0:01:53.5]} 23. Qd2 {[%clk 0:00:50.6]} 23...
h4 {[%clk 0:01:52.4]} 24. Ne2 {[%clk 0:00:49.7]} 24... Nd3 {[%clk 0:01:48.9]}
25. Bxd3 {[%clk 0:00:46.7]} 25... exd3 {[%clk 0:01:49]} 26. Nf4 {[%clk
0:00:47.4]} 26... Qg5 {[%clk 0:01:25.6]} 27. Bc3 {[%clk 0:00:21.8]} 27... Rxe1+
{[%clk 0:01:19.4]} 28. Rxe1 {[%clk 0:00:22.3]} 28... Nxd4 {[%clk 0:01:15.6]} 29.
Qe3 {[%clk 0:00:14.1]} 29... Nc2 {[%clk 0:01:06.5]} 30. Qe5 {[%clk 0:00:07.9]}
30... Qxe5 {[%clk 0:01:04.9]} 31. Rxe5 {[%clk 0:00:07.9]} 31... d2 {[%clk
0:01:05.1]} 32. Bxd2 {[%clk 0:00:08.3]} 32... Rxd2 {[%clk 0:01:05.4]} 33. g3
{[%clk 0:00:05.4]} 33... hxg3 {[%clk 0:01:01.7]} 34. hxg3 {[%clk 0:00:05.5]}
34... Nxa3 {[%clk 0:01:00.4]} 35. Re8+ {[%clk 0:00:05.5]} 35... Kh7 {[%clk
0:01:00.3]} 36. Re7 {[%clk 0:00:06.4]} 36... b5 {[%clk 0:00:57.5]} 37. Rxa7
{[%clk 0:00:06]} 37... b4 {[%clk 0:00:57.6]} 38. Ra4 {[%clk 0:00:04.1]} 38...
Nc2 {[%clk 0:00:57.7]} 39. Ra7 {[%clk 0:00:02.9]} 39... Be4 {[%clk 0:00:57.2]}
40. Kh2 {[%clk 0:00:01.7]} 40... Rxf2+ {[%clk 0:00:56.1]} 41. Kh3 {[%clk
0:00:01.8]} 41... Bf5+ {[%clk 0:00:54.7]} 42. g4 {[%clk 0:00:01.5]} 42... Rxf4
{[%clk 0:00:53.7]} 43. gxf5 {[%clk 0:00:02.2]} 43... Rxf5 {[%clk 0:00:54]} 44.
Rb7 {[%clk 0:00:02.8]} 44... Rf3+ {[%clk 0:00:53.6]} 45. Kg4 {[%clk 0:00:03.1]}
45... Rxb3 {[%clk 0:00:54.1]} 46. Rxf7 {[%clk 0:00:03.4]} 46... Rc3 {[%clk
0:00:54.5]} 47. Rb7 {[%clk 0:00:02.9]} 47... b3 {[%clk 0:00:54.3]} 48. Kf4
{[%clk 0:00:03.5]} 48... Kg6 {[%clk 0:00:54.5]} 49. Ke4 {[%clk 0:00:04.1]} 49...
Na3 {[%clk 0:00:54.3]} 50. Kd4 {[%clk 0:00:02.9]} 50... Rg3 {[%clk 0:00:54.1]}
51. Rb6+ {[%clk 0:00:03.3]} 51... Kh5 {[%clk 0:00:53.9]} 52. Ra6 {[%clk
0:00:02.9]} 52... Nc2+ {[%clk 0:00:53.4]} 0-1

[Event "Late-Titled-Tuesday-Blitz-March-19-2024"]
[Site "Chess.com"]
[Date "2024.03.19"]
[Round "4"]
[White "Roedor"]
[Black "Rawnsdale"]
[Result "0-1"]
[WhiteElo "2303"]
[BlackElo "2526"]
[TimeControl "180+1"]
[EndTime "14:38:43 PDT"]
[Termination "Rawnsdale won by checkmate"]

1. Nf3 {[%clk 0:03:00.9]} 1... d5 {[%clk 0:02:59.5]} 2. d4 {[%clk 0:03:00.7]}
2... e6 {[%clk 0:02:59.9]} 3. c4 {[%clk 0:03:00.6]} 3... Be7 {[%clk 0:03:00.2]}
4. g3 {[%clk 0:03:01]} 4... Nf6 {[%clk 0:03:00.4]} 5. Bg2 {[%clk 0:03:01.6]}
5... O-O {[%clk 0:03:00.7]} 6. O-O {[%clk 0:03:02.4]} 6... dxc4 {[%clk
0:03:01.2]} 7. h4 {[%clk 0:03:02.8]} 7... Nbd7 {[%clk 0:02:59]} 8. Qc2 {[%clk
0:02:59.1]} 8... a6 {[%clk 0:02:57.1]} 9. a4 {[%clk 0:02:56.5]} 9... c5 {[%clk
0:02:52.4]} 10. dxc5 {[%clk 0:02:53.9]} 10... Nxc5 {[%clk 0:02:52.2]} 11. Rd1
{[%clk 0:02:52.9]} 11... Bd7 {[%clk 0:02:50.2]} 12. Qxc4 {[%clk 0:02:51.9]}
12... Rc8 {[%clk 0:02:50.2]} 13. a5 {[%clk 0:01:56.5]} 13... Nce4 {[%clk
0:02:43.5]} 14. Qd3 {[%clk 0:01:49.4]} 14... Bb5 {[%clk 0:02:31.4]} 15. Qxd8
{[%clk 0:01:47.5]} 15... Rfxd8 {[%clk 0:02:29]} 16. Rxd8+ {[%clk 0:01:46.9]}
16... Bxd8 {[%clk 0:02:21.6]} 17. Nc3 {[%clk 0:01:44]} 17... Nxc3 {[%clk
0:02:19.7]} 18. bxc3 {[%clk 0:01:44.9]} 18... Rxc3 {[%clk 0:02:17.3]} 19. Nd4
{[%clk 0:01:36.7]} 19... Nd5 {[%clk 0:01:51.4]} 20. Nxb5 {[%clk 0:01:32.8]}
20... axb5 {[%clk 0:01:51.1]} 21. Bf4 {[%clk 0:00:58.5]} 21... h6 {[%clk
0:01:43.5]} 22. Bxd5 {[%clk 0:00:53.6]} 22... exd5 {[%clk 0:01:44.4]} 23. a6
{[%clk 0:00:53.8]} 23... bxa6 {[%clk 0:01:43.2]} 24. Rxa6 {[%clk 0:00:54.7]}
24... Bf6 {[%clk 0:01:42.5]} 25. Bxh6 {[%clk 0:00:47]} 25... b4 {[%clk
0:01:41.2]} 26. Rb6 {[%clk 0:00:44.6]} 26... b3 {[%clk 0:01:40]} 27. Bg5 {[%clk
0:00:42.8]} 27... b2 {[%clk 0:01:36.8]} 28. Rxb2 {[%clk 0:00:33.5]} 28... Be5
{[%clk 0:01:26.6]} 29. Rb5 {[%clk 0:00:31.5]} 29... f6 {[%clk 0:01:12.7]} 30.
Rxd5 {[%clk 0:00:31.4]} 30... Rc2 {[%clk 0:01:04.1]} 31. e3 {[%clk 0:00:28.4]}
31... Kf7 {[%clk 0:01:01]} 32. Bf4 {[%clk 0:00:28.3]} 32... Ke6 {[%clk
0:01:00.6]} 33. Ra5 {[%clk 0:00:27.8]} 33... Bc3 {[%clk 0:00:59.3]} 34. Ra7
{[%clk 0:00:27.9]} 34... Be1 {[%clk 0:00:57.3]} 35. Rxg7 {[%clk 0:00:24.9]}
35... Bxf2+ {[%clk 0:00:56.6]} 36. Kf1 {[%clk 0:00:24.9]} 36... Kf5 {[%clk
0:00:54.7]} 37. h5 {[%clk 0:00:23]} 37... Ke4 {[%clk 0:00:53.7]} 38. Rc7 {[%clk
0:00:20.6]} 38... Rd2 {[%clk 0:00:48.4]} 39. Rc1 {[%clk 0:00:18.6]} 39... Kf3
{[%clk 0:00:46.3]} 40. h6 {[%clk 0:00:19]} 40... Rd7 {[%clk 0:00:32.2]} 41. e4
{[%clk 0:00:16.9]} 41... Bd4 {[%clk 0:00:29.7]} 42. Rd1 {[%clk 0:00:16.4]} 42...
Rb7 {[%clk 0:00:27.1]} 43. h7 {[%clk 0:00:11.5]} 43... Rxh7 {[%clk 0:00:25.3]}
44. Ke1 {[%clk 0:00:11.7]} 44... Bc3+ {[%clk 0:00:24.4]} 45. Bd2 {[%clk
0:00:10.5]} 45... Rh1# {[%clk 0:00:24.1]} 0-1

[Event "Late-Titled-Tuesday-Blitz-March-19-2024"]
[Site "Chess.com"]
[Date "2024.03.19"]
[Round "4"]
[White "prochn"]
[Black "CheckThis4"]
[Result "1/2-1/2"]
[WhiteElo "2459"]
[BlackElo "2664"]
[TimeControl "180+1"]
[EndTime "14:38:46 PDT"]
[Termination "Game drawn by repetition"]

1. d4 {[%clk 0:03:00.9]} 1... Nf6 {[%clk 0:02:57.9]} 2. c4 {[%clk 0:03:00.6]}
2... e5 {[%clk 0:02:58.1]} 3. dxe5 {[%clk 0:02:59.9]} 3... Ng4 {[%clk
0:02:58.2]} 4. Bf4 {[%clk 0:02:58.4]} 4... Bb4+ {[%clk 0:02:58.1]} 5. Nd2 {[%clk
0:02:56.8]} 5... d6 {[%clk 0:02:58.1]} 6. Nf3 {[%clk 0:02:38.8]} 6... dxe5
{[%clk 0:02:55.8]} 7. Bxe5 {[%clk 0:02:16.5]} 7... O-O {[%clk 0:02:10.8]} 8. Bc3
{[%clk 0:02:07.6]} 8... Bxc3 {[%clk 0:02:06.6]} 9. bxc3 {[%clk 0:02:08.5]} 9...
Nc6 {[%clk 0:02:04.4]} 10. e3 {[%clk 0:02:04]} 10... Qf6 {[%clk 0:02:03.1]} 11.
Be2 {[%clk 0:01:53.6]} 11... Qxc3 {[%clk 0:01:59.7]} 12. O-O {[%clk 0:01:49.5]}
12... Rd8 {[%clk 0:01:58.4]} 13. Qb3 {[%clk 0:01:37.1]} 13... Qf6 {[%clk
0:01:49.1]} 14. Ne4 {[%clk 0:01:29.5]} 14... Qg6 {[%clk 0:01:45.5]} 15. Ng3
{[%clk 0:01:26]} 15... b6 {[%clk 0:01:39.5]} 16. c5 {[%clk 0:01:16.4]} 16... Bb7
{[%clk 0:01:12.9]} 17. Rac1 {[%clk 0:01:14.8]} 17... h5 {[%clk 0:00:59.5]} 18.
cxb6 {[%clk 0:01:13.5]} 18... axb6 {[%clk 0:00:59.2]} 19. a4 {[%clk 0:00:55.3]}
19... Qf6 {[%clk 0:00:52.2]} 20. Nxh5 {[%clk 0:00:47.7]} 20... Qh6 {[%clk
0:00:46.9]} 21. h3 {[%clk 0:00:19.2]} 21... Qxh5 {[%clk 0:00:38.5]} 22. Nh2
{[%clk 0:00:19]} 22... Nce5 {[%clk 0:00:19.2]} 23. Nxg4 {[%clk 0:00:17.1]} 23...
Nxg4 {[%clk 0:00:18.9]} 24. Bxg4 {[%clk 0:00:16.9]} 24... Qe5 {[%clk 0:00:19.5]}
25. Qb5 {[%clk 0:00:14.4]} 25... Rd5 {[%clk 0:00:17.4]} 26. Qc4 {[%clk
0:00:13.8]} 26... c5 {[%clk 0:00:14.6]} 27. Qb5 {[%clk 0:00:13]} 27... Rd6
{[%clk 0:00:14.1]} 28. Rfd1 {[%clk 0:00:11.6]} 28... Bc6 {[%clk 0:00:12.9]} 29.
Qxb6 {[%clk 0:00:09.9]} 29... Rxd1+ {[%clk 0:00:12.7]} 30. Rxd1 {[%clk
0:00:09.5]} 30... Bxa4 {[%clk 0:00:12.7]} 31. Rd8+ {[%clk 0:00:08.9]} 31... Rxd8
{[%clk 0:00:11.4]} 32. Qxd8+ {[%clk 0:00:09.1]} 32... Kh7 {[%clk 0:00:11.8]} 33.
Qh4+ {[%clk 0:00:08.3]} 33... Kg8 {[%clk 0:00:12.1]} 34. Qd8+ {[%clk 0:00:05.6]}
34... Kh7 {[%clk 0:00:11.6]} 35. Qh4+ {[%clk 0:00:04.8]} 35... Kg8 {[%clk
0:00:11.8]} 36. Qd8+ {[%clk 0:00:03.3]} 1/2-1/2